[Event "5th Baskent University Open 2022"]
[Site "Ankara"]
[Date "2022.07.06"]
[Round "7.1"]
[White "Rasulov, Vugar"]
[Black "Eynullayev, Atilla"]
[Result "1-0"]
[ECO "D61"]
[WhiteElo "2458"]
[BlackElo "2333"]
[Annotator "TA"]
[PlyCount "105"]
[EventDate "2022.07.02"]
[EventType "swiss"]
[EventCountry "TUR"]
[SourceTitle "playchess.com"]
[Source "ChessBase"]
[SourceQuality "1"]
[TimeControl "5400+30"]

{[%evp 15,105,7,23,29,25,-18,-17,-4,0,0,0,-32,0,-13,-3,-10,-13,-10,-3,-2,7,7,7,7,45,37,33,0,29,25,49,0,0,-7,-5,0,0,0,2,0,0,0,0,-4,0,0,0,0,47,48,50,46,55,55,55,55,55,55,55,55,60,60,69,69,100,74,215,212,288,282,275,269,252,172,195,130,118,135,358,189,311,139,179,143,129,130,383,383,377,377,620,243]} 1. d4 {[%emt 0:02:00]} Nf6 {[%emt 0:01:00]} 2. c4 {[%emt 0:00:30]} e6 {[%emt 0:00:00]} 3. Nf3 {[%emt 0:00:30]} d5 {[%emt 0:00:00]} 4. Bg5 {[%emt 0:00:30]} Be7 {[%emt 0:01:30]} 5. Nc3 {[%emt 0:00:30]} O-O {[%emt 0:02:30]} 6. e3 {[%emt 0:00:30]} h6 {[%emt 0:01:30]} 7. Bh4 {[%emt 0:00:30]} Nbd7 {[%emt 0:00:30]} 8. Qc2 {[%emt 0:01:30]} c5 {[%emt 0:00:30]} 9. dxc5 {[%emt 0:01:30] D61: Queen's Gambit Declined: Classical: 7 Qc2.} Nxc5 {[%emt 0:09:30]} 10. Be2 {[%emt 0:08:30]} dxc4 {[%emt 0:01:30] [#] With the idea ...Nd3+.} 11. O-O $146 {[%emt 0:01:30] The position is equal.} ({Predecessor:} 11. Bxc4 Bd7 12. O-O Rc8 13. Rfd1 Qc7 14. Rd4 Bc6 15. Rad1 Rfd8 16. Rxd8+ Rxd8 17. Rxd8+ Qxd8 {½-½ (30) Nabaty,T (2638)-Bykhovsky,A (2496) Israel 2021}) 11... a6 {[%emt 0:11:30]} 12. Rfd1 {[%emt 0:00:30]} Qe8 {[%emt 0:01:30]} 13. Ne5 {[%emt 0:07:30]} g5 {[%emt 0:05:30]} (13... b5 $5 {[%cal Rc8b7]}) 14. Bg3 {[%emt 0:01:30]} b5 {[%emt 0:01:30]} 15. Bf3 {[%emt 0:05:30]} Bb7 {[%emt 0:01:30]} 16. Bxb7 {[%emt 0:00:30]} Nxb7 {[%emt 0:00:30]} 17. a4 $36 {[%emt 0:00:00][%mdl 2048] White is more active.} Na5 {[%emt 0:11:30]} 18. axb5 {[%emt 0:00:00]} axb5 {[%emt 0:00:00]} 19. h4 {[%emt 0:01:30]} Kg7 {[%emt 0:18:00]} 20. hxg5 {[%emt 0:05:30]} hxg5 {[%emt 0:00:30]} 21. Nf3 {[%emt 0:00:30]} g4 {[%emt 0:10:30]} 22. Nd4 {[%emt 0:05:30]} Nc6 {[%emt 0:02:21]} 23. Rxa8 {[%emt 0:01:30]} (23. Ncxb5 $14 {is more appropriate.} Rxa1 24. Rxa1) 23... Qxa8 $11 {[%emt 0:00:30]} 24. Ncxb5 {[%emt 0:00:30][%cal Od4e6] Black must now prevent Nxe6+!} Nxd4 {[%emt 0:01:34]} 25. Nxd4 {[%emt 0:00:30]} Qd5 {[%emt 0:00:30]} 26. Ne2 {[%emt 0:03:30]} Qe4 {[%emt 0:02:45]} 27. Qc3 {[%emt 0:07:30]} Rd8 {[%emt 0:01:01]} 28. Rc1 {[%emt 0:02:30][%cal Bd1c1,Bc1c4,Bc4g4][%mdl 32]} Rd3 {[%emt 0:02:20]} 29. Qe5 {[%emt 0:02:30]} Rd5 {[%emt 0:01:24]} 30. Qxe4 {[%emt 0:01:30]} Nxe4 {[%emt 0:00:01]} 31. Rxc4 {[%emt 0:00:30]} Nxg3 {[%emt 0:01:33]} (31... Rd1+ $11 {feels stronger.} 32. Kh2 Nxf2 33. Bxf2 Rd2) 32. Rxg4+ $14 {[%emt 0:02:30]} Kf8 {[%emt 0:00:04]} 33. Nxg3 {[%emt 0:00:30][%mdl 4096] Endgame KRB-KRN} Rb5 {[%emt 0:00:19]} 34. Rc4 {[%emt 0:00:30]} Rxb2 {[%emt 0:07:31]} 35. Rc8+ {[%emt 0:01:30]} Kg7 {[%emt 0:00:30]} 36. Nh5+ {[%emt 0:00:00]} Kh7 {[%emt 0:00:00]} 37. g3 {[%emt 0:00:00][%cal Bg2g3,Bg3g4][%mdl 32]} Rb7 {[%emt 0:00:25]} 38. Kg2 {[%emt 0:03:30]} Kg6 {[%emt 0:01:26]} 39. g4 {[%emt 0:00:30]} Kh7 {[%emt 0:02:58]} 40. Re8 {[%emt 0:00:30]} e5 {[%emt 0:01:40] [#]} (40... f5 $16) 41. Kf3 $1 $18 {[%emt 0:00:30]} f6 {[%emt 0:00:30]} 42. Ke4 {[%emt 0:02:30]} Kg6 {[%emt 0:00:20][%cal Of6f5]} 43. Rg8+ {[%emt 0:00:30]} Kf7 {[%emt 0:00:30]} 44. Rg7+ {[%emt 0:00:30]} Ke6 {[%emt 0:00:30] [#]} 45. Rh7 {[%emt 0:00:00]} ({Better is} 45. f4 $1 $18 {[%cal Rf4f5]}) 45... Rb4+ $16 {[%emt 0:00:00]} 46. Kf3 {[%emt 0:00:00] And now Ng7+ would win.} Bc5 $2 {[%emt 0:01:13]} (46... Bd8 $16 47. Rh6 Kf7) 47. Rc7 {[%emt 0:00:30]} (47. Rh6 $142) 47... Bd6 {[%emt 0:00:33]} (47... Be7 $142 48. Ng7+ Kd6 49. Ne8+ Ke6 50. Ng7+ Kd6 51. Ne8+ Ke6 52. Ng7+) 48. Ng7+ {[%emt 0:00:30]} (48. Rc6 $142) 48... Kd5 $18 {[%emt 0:00:07]} 49. Rd7 {[%emt 0:00:00] aiming for Nf5.} e4+ {[%emt 0:00:48]} 50. Kg2 {[%emt 0:00:00] Hoping for Nf5.} Ke5 {[%emt 0:00:12][%mdl 8192]} (50... Kc6 $16 {keeps fighting.} 51. Ra7 Be5 52. Ra6+ Rb6) 51. Ne8 {[%emt 0:01:30]} Bc5 {[%emt 0:00:45]} 52. Rc7 {[%emt 0:00:30]} Bb6 {[%emt 0:00:55]} (52... Rc4 53. Rc6 Kd5) 53. Re7+ {[%emt 0:00:30] Weighted Error Value: White=0.14 (very precise) /Black=0.34} 1-0

[Event "5th Baskent University Open 2022"]
[Site "Ankara"]
[Date "2022.07.06"]
[Round "7.2"]
[White "Annaberdiev, Meilis"]
[Black "Gunduz, Umut Erdem"]
[Result "0-1"]
[ECO "C68"]
[WhiteElo "2484"]
[BlackElo "2368"]
[Annotator "TA"]
[PlyCount "52"]
[EventDate "2022.07.02"]
[EventType "swiss"]
[EventCountry "TUR"]
[SourceTitle "playchess.com"]
[Source "ChessBase"]
[SourceQuality "1"]
[TimeControl "5400+30"]

{[%evp 9,52,15,20,6,23,0,0,0,2,0,0,-70,-63,-65,-14,-23,0,-29,-28,-93,-91,-111,-31,-289,-358,-337,-292,-285,-266,-524,-516,-511,-506,-549,-467,-548,-528,-542,-535,-532,-527,-549,-537,-591,-564]} 1. e4 {[%emt 0:01:00]} e5 {[%emt 0:01:00]} 2. Nf3 {[%emt 0:00:30]} Nc6 {[%emt 0:00:30]} 3. Bb5 {[%emt 0:00:30]} a6 {[%emt 0:00:30]} 4. Bxc6 {[%emt 0:00:30]} dxc6 {[%emt 0:00:30]} 5. O-O {[%emt 0:00:00]} Qf6 {[%emt 0:00:00]} 6. d3 {[%emt 0:03:00] C68: Ruy Lopez: Exchange Variation, sidelines.} Ne7 {[%emt 0:00:00]} 7. Bg5 {[%emt 0:02:30]} Qe6 {[%emt 0:00:00]} 8. Be3 {[%emt 0:00:30] The position is equal.} f6 {[%emt 0:03:00]} 9. d4 {[%emt 0:01:30]} exd4 {[%emt 0:05:30] [#]} 10. Nxd4 $146 {[%emt 0:02:30]} (10. Qxd4 $11 Ng6 11. Nbd2 (11. Rd1 Bd6 $11)) ({Predecessor:} 10. Qxd4 Ng6 11. Nbd2 Bd6 12. Qc3 O-O 13. Nd4 Qf7 14. Nc4 c5 15. Nf5 Bxf5 16. exf5 Ne7 17. Nxd6 cxd6 18. Qd3 c4 19. Qe4 d5 {½-½ (19) Oskulski,P (2275)-Jones,K (2265) ICCF email 2015}) 10... Qxe4 $15 {[%emt 0:01:30]} 11. Nc3 {[%emt 0:00:00]} Qg4 {[%emt 0:02:30]} ({Better is} 11... Qg6 $15) 12. f3 $11 {[%emt 0:01:00]} Qg6 {[%emt 0:00:00]} 13. Qe2 {[%emt 0:12:30] [#] Bf4 is the strong threat.} Bd7 {[%emt 0:01:00]} 14. Bf4 {[%emt 0:05:30]} (14. Bf2 $11 {remains equal.}) 14... O-O-O $17 {[%emt 0:11:30]} 15. Ne6 {[%emt 0:00:30]} Re8 {[%emt 0:02:30]} ({Black should play} 15... Bxe6 $17 16. Qxe6+ Kb8) 16. Nxc7 $2 {[%emt 0:00:30][%mdl 8192] This move loses the game for White.} (16. Nxf8 $15 Rhxf8 17. Qd2) 16... Nd5 $1 $19 {[%emt 0:00:30]} 17. Qd2 {[%emt 0:10:30]} (17. Nxe8 $2 Nxf4 18. Qd2 Bc5+ 19. Kh1 Be3 20. Nd6+ Kb8 $19) 17... Nxf4 {[%emt 0:00:30]} (17... Bc5+ $2 18. Kh1 Nxc7 19. Na4 $19) 18. Qxf4 {[%emt 0:00:30]} ({Don't go for} 18. Nxe8 $2 Bc5+ 19. Kh1 Be3 20. Nd6+ Kb8 $19) 18... Re5 {[%emt 0:01:30]} ({But not} 18... Qxc2 19. Nxe8 Bc5+ 20. Kh1 Rxe8 21. Ne4 $18) 19. Na8 $2 {[%emt 0:01:30] [#]} (19. Nxa6 bxa6 20. Qa4) 19... Bc5+ {[%emt 0:02:30][%cal Bf8c5,Bc5a7,Ba7b8][%mdl 32] Black is clearly winning.} 20. Kh1 {[%emt 0:00:00]} Kb8 {[%emt 0:00:30]} 21. Rad1 {[%emt 0:01:00]} Bc8 {[%emt 0:00:30] Threatens to win with ...Be3.} ({Not} 21... Kxa8 22. Rxd7 Qxc2 23. Qd2 Qxd2 24. Rxd2 $17) 22. Rfe1 {[%emt 0:03:30]} Kxa8 {[%emt 0:00:30]} 23. Rxe5 {[%emt 0:00:30]} fxe5 {[%emt 0:00:30]} 24. Qxe5 {[%emt 0:00:00]} Ba7 {[%emt 0:00:30]} 25. Ne4 {[%emt 0:00:00]} Re8 {[%emt 0:00:30]} 26. Qc3 {[%emt 0:00:00]} Bb8 {[%emt 0:01:30] Weighted Error Value: White=0.57/Black=0.18 (very precise)} 0-1

[Event "5th Baskent University Open 2022"]
[Site "Ankara"]
[Date "2022.07.06"]
[Round "7.4"]
[White "Dedebas, Emre Emin"]
[Black "Ozsoy, Alimert"]
[Result "1/2-1/2"]
[ECO "C68"]
[WhiteElo "2321"]
[BlackElo "2263"]
[Annotator "TA"]
[PlyCount "36"]
[EventDate "2022.07.02"]
[EventType "swiss"]
[EventCountry "TUR"]
[SourceTitle "playchess.com"]
[Source "ChessBase"]
[SourceQuality "1"]
[TimeControl "5400+30"]

{[%evp 19,22,-21,-11,-18,-7]} 1. e4 {[%emt 0:04:00]} e5 {[%emt 0:01:00]} 2. Nf3 {[%emt 0:00:30]} Nc6 {[%emt 0:00:30]} 3. Bb5 {[%emt 0:00:30]} a6 {[%emt 0:00:00]} 4. Bxc6 {[%emt 0:00:00]} dxc6 {[%emt 0:00:00]} 5. O-O {[%emt 0:00:00]} Qf6 {[%emt 0:00:30]} 6. d4 {[%emt 0:00:30]} exd4 {[%emt 0:00:00]} 7. Qxd4 {[%emt 0:00:00]} Qxd4 {[%emt 0:00:00]} 8. Nxd4 {[%emt 0:00:00]} Bd7 {[%emt 0:00:00]} 9. Nc3 {[%emt 0:00:30]} O-O-O {[%emt 0:00:00]} 10. Be3 {[%emt 0:00:00]} f6 {[%emt 0:00:00]} 11. Rad1 {[%emt 0:00:00] C68: Ruy Lopez: Exchange Variation, sidelines.} Bd6 {[%emt 0:00:00] [#] An uneventful encounter.} {Predecessor:} 12. Nde2 $146 Ne7 13. f3 Be6 14. f4 b6 15. f5 Bf7 16. Kf2 Rhe8 17. h3 Kb7 18. g4 Nc8 {½-½ (49) Moya Quintero,M (1932)-Struzka,V (2215) ICCF email 2014} 1/2-1/2

[Event "5th Baskent University Open 2022"]
[Site "Ankara"]
[Date "2022.07.06"]
[Round "7.5"]
[White "Ozer, Omer Faruk"]
[Black "Huseyinoglu, Alihan"]
[Result "1/2-1/2"]
[ECO "B30"]
[WhiteElo "2317"]
[BlackElo "2213"]
[Annotator "TA"]
[PlyCount "67"]
[EventDate "2022.07.02"]
[EventType "swiss"]
[EventCountry "TUR"]
[SourceTitle "playchess.com"]
[Source "ChessBase"]
[SourceQuality "1"]
[TimeControl "5400+30"]

{[%evp 16,67,5,11,39,20,20,20,20,28,19,13,10,0,35,24,51,33,33,33,33,33,33,21,33,33,24,27,42,16,16,25,22,27,29,30,40,0,2,0,0,0,11,6,0,8,8,0,0,0,0,-18,8,-18]} 1. e4 {[%emt 0:01:00]} c5 {[%emt 0:01:00]} 2. Nf3 {[%emt 0:00:00]} Nc6 {[%emt 0:00:30]} 3. Bb5 {[%emt 0:01:00]} e6 {[%emt 0:02:30]} 4. O-O {[%emt 0:02:30]} Nge7 {[%emt 0:00:30]} 5. Re1 {[%emt 0:02:30]} a6 {[%emt 0:02:30]} 6. Bf1 {[%emt 0:00:30]} d5 {[%emt 0:00:30]} 7. exd5 {[%emt 0:02:30]} Nxd5 {[%emt 0:00:30]} 8. d4 {[%emt 0:01:30]} Nf6 {[%emt 0:00:30]} 9. Be3 {[%emt 0:03:30]} Be7 {[%emt 0:02:30] B30: Sicilian: 2...Nc6 3 Bb5, lines without ...g6.} 10. c4 {[%emt 0:05:30]} O-O {[%emt 0:00:30]} 11. Nc3 {[%emt 0:03:30]} cxd4 {[%emt 0:01:30]} 12. Nxd4 {[%emt 0:00:30]} Bd7 {[%emt 0:00:30] 12...Bd7 has become a bit dusty these days.} 13. Nb3 {[%emt 0:06:30]} Ne5 {[%emt 0:18:30]} 14. h3 {[%emt 0:24:30]} Rc8 {[%emt 0:08:30]} 15. Qd4 {[%emt 0:00:30]} Nc6 {[%emt 0:09:30] [#]} 16. Qb6 $146 {[%emt 0:02:30]} ({Predecessor:} 16. Qd2 Ne5 17. c5 Bc6 18. Rad1 Qxd2 19. Rxd2 Rfd8 20. Na5 Rxd2 21. Bxd2 Rd8 22. Be3 {1-0 (57) Plenca,J (2477)-Sveshnikov,E (2496) Bled 2018}) 16... Qxb6 {[%emt 0:13:30]} 17. Bxb6 {[%emt 0:00:30]} Bd8 {[%emt 0:00:30]} 18. Bxd8 {[%emt 0:05:30]} Rfxd8 {[%emt 0:03:30]} 19. Nc5 {[%emt 0:10:30]} Rc7 {[%emt 0:01:30]} 20. Red1 {[%emt 0:00:30]} Kf8 {[%emt 0:05:30]} 21. a3 {[%emt 0:02:30]} Bc8 {[%emt 0:01:30]} 22. N3a4 {[%emt 0:02:30]} Rxd1 {[%emt 0:03:30]} 23. Rxd1 {[%emt 0:00:00]} Ne5 {[%emt 0:00:30][%cal Oe5c4]} 24. b4 {[%emt 0:02:00] Threatens to win with Nb6.} Ned7 {[%emt 0:05:29] Against Nb6} 25. Nb3 {[%emt 0:01:16]} b6 {[%emt 0:02:19]} 26. g4 {[%emt 0:05:22]} h6 {[%emt 0:03:33] The position is equal.} 27. Rc1 {[%emt 0:02:49]} Ke7 {[%emt 0:03:45]} 28. c5 {[%emt 0:00:58]} bxc5 {[%emt 0:01:40]} 29. Naxc5 {[%emt 0:01:24]} Nxc5 {[%emt 0:01:33]} 30. Rxc5 {[%emt 0:00:30]} Nd5 {[%emt 0:00:30]} 31. Kh2 {[%emt 0:00:30]} g5 {[%emt 0:03:14]} 32. Bc4 {[%emt 0:07:13]} Kd6 {[%emt 0:00:50]} 33. Kg3 {[%emt 0:01:10]} Nc3 {[%emt 0:01:42] [#] ...Ne4+ is the strong threat.} 34. Bd3 {[%emt 0:01:16] Prevents Ne4+.  Weighted Error Value: White=0.07 (flawless) /Black=0.06 (flawless)} 1/2-1/2

[Event "5th Baskent University Open 2022"]
[Site "Ankara"]
[Date "2022.07.06"]
[Round "7.6"]
[White "Tarhan, Adar"]
[Black "Caputcuoglu, Zeki Berke"]
[Result "0-1"]
[ECO "C04"]
[WhiteElo "2201"]
[BlackElo "2203"]
[Annotator "TA"]
[PlyCount "64"]
[EventDate "2022.07.02"]
[EventType "swiss"]
[EventCountry "TUR"]
[SourceTitle "playchess.com"]
[Source "ChessBase"]
[SourceQuality "1"]
[TimeControl "5400+30"]

{[%evp 11,64,31,34,14,27,-133,-131,-164,-175,-178,-168,-164,-167,-185,-141,-169,-175,-177,-175,-174,-168,-200,-204,-201,-122,-223,-229,-385,-404,-624,-602,-828,-853,-810,-779,-887,-836,-826,-857,-1181,-1172,-1179,-1179,-1366,-1336,-29985,-29986,-29985,-1613,-1543,-1496,-1591,-1572,-2682,-2616]} 1. e4 {[%emt 0:03:00][%cal Be2e4,Be4e5][%mdl 32]} e6 {[%emt 0:03:00]} 2. d4 {[%emt 0:00:30]} d5 {[%emt 0:00:30]} 3. Nd2 {[%emt 0:00:30]} Nc6 {[%emt 0:00:00]} 4. Ngf3 {[%emt 0:05:30]} Nf6 {[%emt 0:00:00]} 5. e5 {[%emt 0:02:30]} Nd7 {[%emt 0:00:30]} 6. c3 {[%emt 0:03:30]} f6 {[%emt 0:00:00][%cal Bf7f6,Bf6e5,Be5e4][%mdl 32]} 7. Nh4 {[%emt 0:07:30] C04: French Tarrasch: 3...Nc6.} Qe7 {[%emt 0:07:00]} 8. f4 {[%emt 0:05:30]} (8. exf6 $11 Qxf6 9. Ndf3) 8... fxe5 $17 {[%emt 0:03:30] [#]} 9. Ndf3 $146 {[%emt 0:04:30][%cal Rf4e5] [#] Black is clearly better.} ({Predecessor:} 9. Qh5+ g6 10. Nxg6 Qf7 11. fxe5 Qxg6 12. Qxg6+ hxg6 13. Bd3 Rg8 14. Nf3 Be7 15. Ng5 {0-1 (40) Young,Z (2077)-Formanek,E (2286) Philadelphia 2006}) 9... e4 {[%emt 0:04:30]} 10. Ng5 {[%emt 0:00:30]} Nf6 {[%emt 0:00:30] Prevents Qh5+.} 11. Be2 {[%emt 0:02:30]} g6 {[%emt 0:01:30]} 12. Be3 {[%emt 0:00:30]} Bg7 {[%emt 0:02:30]} 13. Qd2 {[%emt 0:01:30]} Bd7 {[%emt 0:05:30]} 14. O-O-O {[%emt 0:15:30]} Na5 {[%emt 0:09:30]} 15. g4 {[%emt 0:03:30]} O-O-O {[%emt 0:07:30]} 16. Rdf1 {[%emt 0:01:30]} Ne8 {[%emt 0:07:30]} 17. f5 {[%emt 0:07:30]} Nd6 {[%emt 0:01:30]} 18. b3 {[%emt 0:02:30] Against Nac4} (18. Nxe6 $17 Bxe6 19. Bg5) 18... exf5 {[%emt 0:11:30]} 19. c4 $2 {[%emt 0:01:30]} (19. gxf5 Nxf5 20. Nxf5 Bxf5 21. h4) 19... Nc6 $19 {[%emt 0:00:30][%cal Ba5c6,Bc6d4,Bd4e2][%mdl 32]} 20. cxd5 {[%emt 0:04:30] [#]} (20. c5 $142 Ne8 21. Ng2) 20... Nxd4 $1 {[%emt 0:00:00][%mdl 512]} 21. gxf5 {[%emt 0:02:30]} (21. Bxd4 Bxd4) 21... Nxe2+ {[%emt 0:02:00]} 22. Qxe2 {[%emt 0:00:30]} gxf5 {[%emt 0:00:30] aiming for ...Nb5.} 23. Qc2 {[%emt 0:00:30]} Bf6 {[%emt 0:00:30]} 24. Rhg1 {[%emt 0:02:30]} Rhg8 {[%emt 0:00:30][%cal Bh8g8,Bg8g5,Bg5g1][%mdl 32]} 25. Qc5 {[%emt 0:01:30]} Bxg5 {[%emt 0:02:30]} 26. Rxg5 {[%emt 0:00:30]} Rxg5 {[%emt 0:00:30]} 27. Qxa7 {[%emt 0:00:00]} Bb5 {[%emt 0:00:00]} 28. Rf2 {[%emt 0:00:00]} Rg1+ {[%emt 0:00:00]} 29. Kb2 {[%emt 0:00:30]} Qxh4 {[%emt 0:00:30]} (29... Nc4+ $142 30. Kc2 Nxe3+ 31. Qxe3 Qxh4 32. Re2 Bd3+ 33. Kd2 Rb1 34. Qg3 Rb2+ 35. Kc3 Qf6+ 36. Kb4 Qd4+ 37. Ka3 Rxe2 38. Qxd3 exd3 39. h3 Rxd5 40. b4 Qc3+ 41. Ka4 Rxa2#) 30. Rc2 {[%emt 0:00:00] Black is clearly winning.} Rg6 {[%emt 0:00:30] ...Bd3 is the strong threat.} 31. Bf2 {[%emt 0:03:00]} Qe7 {[%emt 0:01:30] Strongly threatening ...Bd3.} 32. Bb6 {[%emt 0:01:15] [#]} Nc4+ $1 {[%emt 0:00:30] White got outplayed after the opening.  Weighted Error Value: White=1.10/Black=0.33} 0-1

[Event "5th Baskent University Open 2022"]
[Site "Ankara"]
[Date "2022.07.06"]
[Round "7.7"]
[White "Koksal, Ege"]
[Black "Aliyev, Elnur"]
[Result "0-1"]
[ECO "E92"]
[WhiteElo "2356"]
[BlackElo "2142"]
[Annotator "TA"]
[PlyCount "123"]
[EventDate "2022.07.02"]
[EventType "swiss"]
[EventCountry "TUR"]
[SourceTitle "playchess.com"]
[Source "ChessBase"]
[SourceQuality "1"]
[TimeControl "5400+30"]

{[%evp 16,123,35,12,21,11,37,32,44,39,40,-93,-81,-83,-80,-81,-77,-88,-85,-90,-102,-135,-127,-132,-116,-128,-103,-173,-168,-194,-197,-195,-178,-172,-168,-668,-277,-657,-237,-193,-68,-111,-89,-79,-93,-133,-131,-100,-89,-98,-113,-135,-132,-132,-137,-108,-94,-79,-84,-51,-36,-46,-35,-42,-35,-42,-41,-53,-41,-59,-43,-90,-50,-50,-50,-50,0,0,0,0,0,0,0,0,0,-12,0,0,0,0,0,0,0,-38,-44,-29959,-29961,-29968,-29968,-29967,-29968,-29977,-29979,-29979,-29980,-29980,-29981,-29981,-29982,-29982]} 1. d4 {[%emt 0:05:00]} Nf6 {[%emt 0:01:00]} 2. Nf3 {[%emt 0:00:30]} g6 {[%emt 0:02:30]} 3. c4 {[%emt 0:00:30]} Bg7 {[%emt 0:00:30]} 4. Nc3 {[%emt 0:00:30]} O-O {[%emt 0:00:30]} 5. e4 {[%emt 0:00:00]} d6 {[%emt 0:01:30]} 6. Be2 {[%emt 0:00:00]} e5 {[%emt 0:01:30]} 7. d5 {[%emt 0:00:00]} a5 {[%emt 0:00:30]} 8. Be3 {[%emt 0:00:00]} Na6 {[%emt 0:01:30]} 9. Nd2 {[%emt 0:02:30]} Nd7 {[%emt 0:07:30] E92: King's Indian: Classical: 6 Be2 e5: 7 dxe5, 7 Be3 and Petrosian System without 7...Nbd7.} 10. g4 {[%emt 0:00:30] [#]} f5 $146 {[%emt 0:01:30]} ({Predecessor:} 10... Ndc5 11. Rg1 Kh8 12. h4 f5 13. g5 Kg8 14. a3 f4 15. Bxc5 Nxc5 16. b4 axb4 17. axb4 Rxa1 18. Qxa1 {1-0 (31) Hillarp Persson,T (2546)-Akash Pc,I (2441) London 2018}) 11. exf5 {[%emt 0:09:30]} gxf5 {[%emt 0:00:30] White is slightly better.} 12. gxf5 {[%emt 0:00:00]} Ndc5 {[%emt 0:01:30]} 13. f6 {[%emt 0:02:00]} (13. Bg4 $1 $14) 13... Qxf6 $17 {[%emt 0:02:30]} 14. Nde4 {[%emt 0:00:00]} Nxe4 {[%emt 0:01:30]} 15. Nxe4 {[%emt 0:00:00]} Qh4 {[%emt 0:03:30]} 16. Ng3 {[%emt 0:00:30]} Bh6 $1 {[%emt 0:05:30]} 17. Qd2 {[%emt 0:05:30]} Bxe3 {[%emt 0:07:30]} 18. fxe3 {[%emt 0:01:30]} Nc5 {[%emt 0:01:30]} 19. O-O-O {[%emt 0:05:30]} a4 {[%emt 0:00:30]} 20. Qc2 {[%emt 0:30:30]} Kh8 {[%emt 0:01:30]} 21. Bd3 {[%emt 0:01:30]} (21. Kb1 $17) 21... Bg4 $19 {[%emt 0:06:30]} 22. Rd2 {[%emt 0:01:30]} Rf3 {[%emt 0:04:30] ...Rxg3 is the strong threat.} 23. Re1 {[%emt 0:00:00]} Qh6 {[%emt 0:07:30]} 24. Rde2 {[%emt 0:11:00]} Raf8 {[%emt 0:02:30][%cal Of3f2] Inhibits Bf5. And now ...Rf2! would win.} 25. Qd2 $2 {[%emt 0:00:30] [#]} (25. Be4 R3f7 26. Rd2) 25... R3f7 {[%emt 0:07:30]} (25... Rf2 $142 $3 {[%mdl 512]} 26. Rxf2 Rxf2) 26. Rg2 $2 {[%emt 0:00:30] [#]} (26. Bc2 Bxe2 27. Rxe2) 26... Bh3 $2 {[%emt 0:00:00]} (26... Rf2 $3 {[%mdl 512]} 27. Rxf2 Rxf2) 27. Rge2 {[%emt 0:01:30]} Bf1 {[%emt 0:03:00]} (27... Qh4 $19 {Threatens to win with ...Bg4.} 28. Kb1 Bg4) 28. Nxf1 $15 {[%emt 0:00:30]} Rxf1 {[%emt 0:00:00]} 29. Bc2 {[%emt 0:00:30] [#]} Qh4 $1 {[%emt 0:00:00]} 30. b4 {[%emt 0:09:57]} Ne4 {[%emt 0:05:30] 0x0.001e6e5170aedp-1022s more active pieces. The white rooks are badly placed.} ({Don't do} 30... Qxc4 31. bxc5 Qxc5 32. Rxf1 Rxf1+ 33. Re1 $18) 31. Bxe4 {[%emt 0:04:52]} Qxe4 {[%emt 0:00:00]} 32. Qc2 {[%emt 0:00:00]} Rxe1+ {[%emt 0:08:48]} 33. Rxe1 {[%emt 0:00:00]} Qxc2+ {[%emt 0:00:31]} 34. Kxc2 $17 {[%emt 0:00:25][%mdl 4096] Endgame KR-KR} Rf2+ {[%emt 0:00:30]} 35. Kc3 {[%emt 0:00:30]} Rxa2 {[%emt 0:00:30] White must now prevent ...Ra3+.} 36. c5 {[%emt 0:00:30]} a3 {[%emt 0:00:30]} ({Of course not} 36... Rxh2 $6 37. Ra1 $15) 37. Kb3 {[%emt 0:00:30]} Rd2 {[%emt 0:00:30]} 38. Kxa3 {[%emt 0:00:30]} Rxd5 {[%emt 0:00:30]} 39. cxd6 {[%emt 0:00:30]} Rxd6 {[%emt 0:00:30]} 40. b5 $1 {[%emt 0:00:30]} Kg7 {[%emt 0:00:30]} 41. Kb4 {[%emt 0:04:35]} Kf6 {[%emt 0:05:42]} 42. Rc1 {[%emt 0:00:42]} Rd7 {[%emt 0:00:42]} 43. Rc4 {[%emt 0:00:17]} (43. e4 $1 $15 {is superior.}) 43... Kf5 {[%emt 0:00:16]} 44. Rh4 {[%emt 0:00:16]} Kg5 {[%emt 0:00:52]} 45. Re4 {[%emt 0:00:05]} Rd5 {[%emt 0:06:13]} ({Black should play} 45... Re7 $1 $15) 46. Rc4 $11 {[%emt 0:00:01]} c6 {[%emt 0:00:32]} 47. bxc6 {[%emt 0:00:30]} bxc6 {[%emt 0:00:00]} 48. Rxc6 {[%emt 0:01:19]} Rd3 {[%emt 0:00:42]} 49. Rc3 {[%emt 0:01:04]} Rd2 {[%emt 0:03:13]} 50. h4+ {[%emt 0:00:26]} Kxh4 {[%emt 0:01:39]} 51. Rc5 {[%emt 0:00:03]} e4 {[%emt 0:01:03]} 52. Re5 {[%emt 0:00:35]} h5 {[%emt 0:00:21][%cal Bh7h5,Bh5h4][%mdl 32] Hoping for ...Rc2.} 53. Rxe4+ {[%emt 0:04:05]} Kg3 {[%emt 0:00:01] Strongly threatening ...h4.} 54. Kc3 {[%emt 0:00:03]} Rd5 {[%emt 0:00:30] ( -> ...h4)} 55. Re8 $2 {[%emt 0:00:17][%mdl 8192] Now White is beyond hope.} (55. Rb4 $15) 55... h4 {[%emt 0:00:33] Black mates.} 56. Rh8 {[%emt 0:00:29]} h3 {[%emt 0:00:54]} 57. e4 {[%emt 0:00:30]} Rg5 {[%emt 0:00:00]} 58. Kd4 {[%emt 0:02:47]} h2 {[%emt 0:00:11]} 59. Rxh2 {[%emt 0:00:59]} Kxh2 {[%emt 0:00:02]} 60. e5 {[%emt 0:00:00]} Kg3 {[%emt 0:00:31]} 61. Ke4 {[%emt 0:00:09]} Kg4 {[%emt 0:00:25]} 62. e6 {[%emt 0:00:01] Weighted Error Value: White=0.41/Black=0.23 (precise)} 0-1